fUSD/lending_fUSD_20260529
["ID","MTS","AMOUNT","RATE_DAILY","PERIOD"]
[423382721,1780069850000,-346.46281349,0.00031127,7]
[423382723,1780069850000,-222.12062325,0.00031127,7]
[423382725,1780069850000,-163.29326204,0.00031153,7]
[423382714,1780069850000,-410.67852649,0.00031127,7]
[423382735,1780069850000,-792.11118077,0.00031153,7]
[423382724,1780069850000,-491.45959357,0.00031153,7]
[423382728,1780069850000,-642.91271977,0.00031153,7]
[423382732,1780069850000,-304.82514643,0.00031153,7]
[423382731,1780069850000,-562.13129836,0.00031153,7]
[423382727,1780069850000,-529.41031767,0.00031153,7]
[423382729,1780069850000,-677.64274398,0.00031153,7]
[423382733,1780069850000,-551.37323193,0.00031153,7]
[423382730,1780069850000,-627.81721971,0.00031153,7]
[423382734,1780069850000,-160.42531587,0.00031153,7]
[423382737,1780069850000,-628.85201194,0.00031153,7]
[423382738,1780069850000,-308.9980516,0.00031153,7]
[423382683,1780069850000,-407.0,0.00030699,30]
[423382736,1780069850000,-160.45909009,0.00031153,7]
[423382711,1780069850000,-449.99939243,0.00031127,7]
[423382726,1780069850000,-414.00856295,0.00031153,7]
[423382707,1780069850000,-306.56643812,0.00031127,7]
[423382682,1780069850000,-364.0,0.00030699,30]
[423382708,1780069850000,-160.35581611,0.00031127,7]
[423382689,1780069850000,-2062.0,0.00030946,120]
[423382692,1780069850000,-500.0,0.00031041,2]
[423382685,1780069850000,-982.0,0.00030699,30]
[423382688,1780069850000,-1400.0,0.000309,11]
[423382687,1780069850000,-1929.12,0.00030734,120]
[423382686,1780069850000,-376.89212746,0.00030709,2]
[423382690,1780069850000,-2396.45,0.00031,7]
[423382691,1780069850000,-1293.0,0.00031034,30]
[423382694,1780069850000,-3537.8,0.000311,7]
[423382704,1780069850000,-674.37438429,0.00031127,7]
[423382693,1780069850000,-2305.0,0.0003108,2]
[423382684,1780069850000,-2407.0,0.00030699,30]
[423382703,1780069850000,-170.45189406,0.00031127,7]
[423382702,1780069850000,-403.19379369,0.00031127,7]
[423382695,1780069850000,-698.04581207,0.00031127,7]
[423382696,1780069850000,-301.55018014,0.00031127,7]
[423382701,1780069850000,-722.21608119,0.00031127,7]
[423382700,1780069850000,-164.94811919,0.00031127,7]
[423382699,1780069850000,-852.05465417,0.00031127,7]
[423382697,1780069850000,-348.934414,0.00031127,7]
[423382705,1780069850000,-319.01564937,0.00031127,7]
[423382706,1780069850000,-160.49733697,0.00031127,7]
[423382698,1780069850000,-423.2260397,0.00031127,7]
[423382716,1780069850000,-329.67752506,0.00031127,7]
[423382717,1780069850000,-160.42530055,0.00031127,7]
[423382781,1780069851000,-823.24237418,0.00031178,7]
[423382779,1780069851000,-523.42570188,0.00031178,7]
[423382764,1780069851000,-751.00760413,0.00031153,7]
[423382782,1780069851000,-1498.38852039,0.00031178,7]
[423382786,1780069851000,-829.83953739,0.00031178,7]
[423382777,1780069851000,-301.5555004,0.00031178,7]
[423382773,1780069851000,-723.40083595,0.00031153,7]
[423382776,1780069851000,-610.98904212,0.00031153,7]
[423382769,1780069851000,-462.7893129,0.00031153,2]
[423382771,1780069851000,-788.5794233,0.00031153,7]
[423382783,1780069851000,-555.81542163,0.00031178,2]
[423382775,1780069851000,-601.99193116,0.00031153,7]
[423382778,1780069851000,-609.13872775,0.00031178,7]
[423382798,1780069851000,-675.685191,0.00031198,7]
[423382785,1780069851000,-324.03231756,0.00031178,7]
[423382784,1780069851000,-331.00823145,0.00031178,7]
[423382787,1780069851000,-164.02260231,0.00031178,7]
[423382795,1780069851000,-835.81308217,0.00031198,2]
[423382794,1780069851000,-168.79279335,0.00031198,2]
[423382788,1780069851000,-884.0,0.00031184,8]
[423382792,1780069851000,-160.42851735,0.00031198,7]
[423382790,1780069851000,-160.42531149,0.00031198,7]
[423382789,1780069851000,-646.65958305,0.00031198,7]
[423382796,1780069851000,-165.55157232,0.00031198,7]
[423382799,1780069851000,-167.92382881,0.00031198,7]
[423382797,1780069851000,-168.26811507,0.00031198,7]
[423382774,1780069851000,-681.6472164,0.00031153,7]
[423382780,1780069851000,-166.20206057,0.00031178,7]
[423382766,1780069851000,-342.74942695,0.00031153,7]
[423382748,1780069851000,-796.42830105,0.00031153,7]
[423382772,1780069851000,-822.22953096,0.00031153,7]
[423382793,1780069851000,-170.14803788,0.00031198,7]
[423382742,1780069851000,-522.34402998,0.00031153,7]
[423382740,1780069851000,-636.35054888,0.00031153,7]
[423382743,1780069851000,-648.14826849,0.00031153,7]
[423382744,1780069851000,-308.75521843,0.00031153,7]
[423382741,1780069851000,-160.69199126,0.00031153,7]
[423382739,1780069851000,-324.43114156,0.00031153,7]
[423382746,1780069851000,-587.82795927,0.00031153,7]
[423382745,1780069851000,-717.83360202,0.00031153,7]
[423382747,1780069851000,-823.57551348,0.00031153,7]
[423382750,1780069851000,-166.39104305,0.00031153,7]
[423382752,1780069851000,-173.0522868,0.00031153,7]
[423382751,1780069851000,-707.32256884,0.00031153,7]
[423382763,1780069851000,-340.66294342,0.00031153,7]
[423382760,1780069851000,-624.23426292,0.00031153,7]
[423382758,1780069851000,-726.8315098,0.00031153,7]
[423382754,1780069851000,-318.84988709,0.00031153,7]
[423382756,1780069851000,-499.09612419,0.00031153,7]
[423382753,1780069851000,-554.63080055,0.00031153,7]
[423382749,1780069851000,-585.29386708,0.00031153,7]
[423382757,1780069851000,-402.80754317,0.00031153,7]
[423382761,1780069851000,-161.87142922,0.00031153,7]
[423382759,1780069851000,-168.95311079,0.00031153,7]
[423382765,1780069851000,-229.33649753,0.00031153,7]
[423382762,1780069851000,-600.64699541,0.00031153,7]
[423382767,1780069851000,-660.09473194,0.00031153,7]
[423382768,1780069851000,-457.66138496,0.00031153,7]
[423382770,1780069851000,-809.01978244,0.00031153,7]
[423382755,1780069851000,-616.21925881,0.00031153,7]
[423382801,1780069851000,-164.41527313,0.00031198,7]
[423382791,1780069851000,-301.40472437,0.00031198,7]
[423382802,1780069851000,-178.09446119,0.00031198,2]
[423382831,1780069851000,-449.8075737,0.00031198,7]
[423382834,1780069851000,-695.56136862,0.00031198,7]
[423382833,1780069851000,-634.49126615,0.00031198,7]
[423382838,1780069851000,-542.00010315,0.00031198,5]
[423382837,1780069851000,-783.57834108,0.00031198,7]
[423382839,1780069851000,-770.11690927,0.00031198,7]
[423382841,1780069851000,-838.47129181,0.00031198,7]
[423382845,1780069851000,-160.4253198,0.00031198,7]
[423382847,1780069851000,-160.42850854,0.00031198,7]
[423382842,1780069851000,-160.4253173,0.00031198,7]
[423382840,1780069851000,-688.72185044,0.00031198,7]
[423382849,1780069851000,-656.64279332,0.00031198,7]
[423382843,1780069851000,-613.76524063,0.00031198,7]
[423382830,1780069851000,-501.52436015,0.00031198,7]
[423382848,1780069851000,-506.07001486,0.00031198,7]
[423382846,1780069851000,-457.99628692,0.00031198,7]
[423382851,1780069851000,-325.99365082,0.00031198,7]
[423382850,1780069851000,-584.46617492,0.00031198,7]
[423382852,1780069851000,-827.17413021,0.00031198,5]
[423382854,1780069851000,-764.47911495,0.00031198,7]
[423382853,1780069851000,-650.25271364,0.00031198,7]
[423382859,1780069851000,-311.68,0.000312,7]
[423382858,1780069851000,-50339.39,0.000312,14]
[423382856,1780069851000,-408.96463085,0.00031198,7]
[423382860,1780069851000,-1590.0,0.000314,3]
[423382857,1780069851000,-587.77991003,0.00031198,2]
[423382861,1780069851000,-1590.0,0.000314,3]
[423382800,1780069851000,-168.84292047,0.00031198,7]
[423382844,1780069851000,-155.5235617,0.00031198,7]
[423382832,1780069851000,-441.42006145,0.00031198,7]
[423382855,1780069851000,-561.87523418,0.00031198,2]
[423382829,1780069851000,-718.1862991,0.00031198,7]
[423382835,1780069851000,-821.55796517,0.00031198,7]
[423382862,1780069851000,-2318.0,0.000314,3]
[423382803,1780069851000,-161.5358857,0.00031198,7]
[423382804,1780069851000,-157.42799772,0.00031198,7]
[423382811,1780069851000,-160.42531152,0.00031198,7]
[423382810,1780069851000,-430.04676054,0.00031198,7]
[423382806,1780069851000,-315.36925289,0.00031198,7]
[423382807,1780069851000,-168.87012776,0.00031198,7]
[423382805,1780069851000,-170.79684311,0.00031198,7]
[423382808,1780069851000,-160.49732895,0.00031198,7]
[423382812,1780069851000,-160.70734615,0.00031198,7]
[423382814,1780069851000,-518.26482842,0.00031198,2]
[423382813,1780069851000,-160.42531756,0.00031198,7]
[423382815,1780069851000,-635.04399326,0.00031198,7]
[423382809,1780069851000,-646.55209684,0.00031198,7]
[423382822,1780069851000,-159.34080076,0.00031198,7]
[423382818,1780069851000,-213.04846433,0.00031198,7]
[423382827,1780069851000,-677.61293919,0.00031198,7]
[423382825,1780069851000,-160.49731709,0.00031198,7]
[423382828,1780069851000,-327.18449977,0.00031198,7]
[423382826,1780069851000,-150.08748288,0.00031198,7]
[423382821,1780069851000,-340.62168414,0.00031198,7]
[423382836,1780069851000,-453.38015755,0.00031198,7]
[423382816,1780069851000,-660.56526917,0.00031198,7]
[423382817,1780069851000,-869.78135325,0.00031198,7]
[423382824,1780069851000,-406.19395241,0.00031198,7]
[423382819,1780069851000,-618.10849409,0.00031198,7]
[423382820,1780069851000,-601.23425328,0.00031198,7]
[423382823,1780069851000,-160.42531781,0.00031198,7]
[423382897,1780069852000,-2362.0,0.00031715,3]
[423382886,1780069852000,-1418.0,0.00031686,30]
[423382888,1780069852000,-506.0,0.00031699,30]
[423382892,1780069852000,-407.0,0.00031699,30]
[423382889,1780069852000,-430.0,0.00031699,30]
[423382893,1780069852000,-2407.0,0.00031699,30]
[423382887,1780069852000,-902.0,0.00031686,30]
[423382894,1780069852000,-982.0,0.00031699,30]
[423382895,1780069852000,-200.0,0.000317,5]
[423382896,1780069852000,-2318.0,0.00031715,3]
[423382904,1780069852000,-803.64089971,0.00031744,7]
[423382898,1780069852000,-872.55726508,0.00031717,7]
[423382901,1780069852000,-1590.0,0.0003172,3]
[423382900,1780069852000,-1590.0,0.0003172,3]
[423382902,1780069852000,-1180.38,0.00031736,30]
[423382903,1780069852000,-884.0,0.00031739,9]
[423382907,1780069852000,-786.06501493,0.00031744,7]
[423382905,1780069852000,-784.77152464,0.00031744,7]
[423382906,1780069852000,-990.13897596,0.00031744,7]
[423382890,1780069852000,-1489.0,0.00031699,30]
[423382910,1780069852000,-826.43919643,0.00031744,7]
[423382899,1780069852000,-1590.0,0.0003172,3]
[423382891,1780069852000,-364.0,0.00031699,30]
[423382871,1780069852000,-800.0,0.00031578,2]
[423382880,1780069852000,-347.0,0.00031578,2]
[423382912,1780069852000,-770.27407351,0.00031744,7]
[423382863,1780069852000,-731.86,0.000314,7]
[423382864,1780069852000,-2396.45,0.000315,7]
[423382873,1780069852000,-800.0,0.00031578,2]
[423382872,1780069852000,-800.0,0.00031578,2]
[423382865,1780069852000,-775.62999999,0.00031507,30]
[423382870,1780069852000,-250.0,0.00031534,7]
[423382869,1780069852000,-250.0,0.00031534,7]
[423382866,1780069852000,-1000.0,0.00031532,52]
[423382868,1780069852000,-250.0,0.00031534,7]
[423382867,1780069852000,-250.0,0.00031534,7]
[423382875,1780069852000,-800.0,0.00031578,2]
[423382885,1780069852000,-185.0,0.00031686,30]
[423382874,1780069852000,-800.0,0.00031578,2]
[423382878,1780069852000,-800.0,0.00031578,2]
[423382881,1780069852000,-1590.0,0.0003158,3]
[423382882,1780069852000,-375.35636073,0.00031654,2]
[423382876,1780069852000,-800.0,0.00031578,2]
[423382879,1780069852000,-800.0,0.00031578,2]
[423382877,1780069852000,-800.0,0.00031578,2]
[423382883,1780069852000,-303.0,0.00031686,30]
[423382884,1780069852000,-354.0,0.00031686,30]
[423382911,1780069852000,-1044.18462521,0.00031744,7]
[423382913,1780069852000,-780.29282865,0.00031744,7]
[423382908,1780069852000,-810.18533561,0.00031744,7]
[423382937,1780069852000,-955.59889369,0.00031789,7]
[423382938,1780069852000,-500.0,0.00031806,120]
[423382939,1780069852000,-152.0,0.00031834,8]
[423382940,1780069852000,-150.0,0.00031858,2]
[423382945,1780069852000,-50339.39,0.00032,14]
[423382943,1780069852000,-150.0,0.00031995,14]
[423382946,1780069852000,-200.0,0.00032,7]
[423382941,1780069852000,-1590.0,0.000319,3]
[423382944,1780069852000,-160.94,0.00031995,14]
[423382942,1780069852000,-150.0,0.00031995,14]
[423382947,1780069852000,-1590.0,0.0003204,3]
[423382949,1780069852000,-2318.0,0.0003204,3]
[423382952,1780069852000,-253.2423139,0.000322,7]
[423382951,1780069852000,-2000.0,0.0003216,7]
[423382953,1780069852000,-1590.0,0.00032205,3]
[423382954,1780069852000,-2704.2,0.0003221,5]
[423382957,1780069852000,-884.0,0.00032294,9]
[423382958,1780069852000,-2318.0,0.0003236,11]
[423382955,1780069852000,-3553.106,0.00032286,32]
[423382959,1780069852000,-2318.0,0.0003236,11]
[423382956,1780069852000,-217.559,0.00032286,32]
[423382948,1780069852000,-163.0,0.0003204,3]
[423382931,1780069852000,-979.47292635,0.00031789,7]
[423382950,1780069852000,-1000.0,0.00032041,12]
[423382935,1780069852000,-820.80349165,0.00031789,7]
[423382909,1780069852000,-884.15321105,0.00031744,7]
[423382932,1780069852000,-751.23904665,0.00031789,7]
[423382914,1780069852000,-825.11841493,0.00031744,7]
[423382917,1780069852000,-752.48991395,0.00031744,7]
[423382916,1780069852000,-852.0590205,0.00031744,7]
[423382918,1780069852000,-2318.0,0.00031765,3]
[423382920,1780069852000,-1872.98565048,0.00031769,7]
[423382923,1780069852000,-1044.76635272,0.00031789,2]
[423382921,1780069852000,-885.06872695,0.00031769,7]
[423382922,1780069852000,-808.32447882,0.00031789,7]
[423382915,1780069852000,-1027.7869137,0.00031744,7]
[423382924,1780069852000,-844.60648875,0.00031789,7]
[423382926,1780069852000,-772.63561762,0.00031789,7]
[423382936,1780069852000,-812.81589205,0.00031789,7]
[423382925,1780069852000,-793.80499158,0.00031789,7]
[423382934,1780069852000,-767.20655078,0.00031789,7]
[423382927,1780069852000,-751.5428166,0.00031789,7]
[423382929,1780069852000,-897.73287388,0.00031789,7]
[423382928,1780069852000,-847.01617399,0.00031789,7]
[423382919,1780069852000,-761.42340968,0.00031769,7]
[423382930,1780069852000,-1026.94745646,0.00031789,7]
[423382933,1780069852000,-1048.08911477,0.00031789,7]
[423383003,1780069853000,-1000.0,0.00032877,10]
[423383008,1780069853000,-959.03,0.00032877,2]
[423383007,1780069853000,-745.91619308,0.00032877,2]
[423382999,1780069853000,-500.0,0.0003277,31]
[423382998,1780069853000,-1000.0,0.00032711,24]
[423382990,1780069853000,-2318.0,0.00032692,11]
[423382997,1780069853000,-982.0,0.00032699,30]
[423382992,1780069853000,-430.0,0.00032699,30]
[423382994,1780069853000,-364.0,0.00032699,30]
[423383001,1780069853000,-2318.0,0.00032858,11]
[423382993,1780069853000,-1489.0,0.00032699,30]
[423382996,1780069853000,-2407.0,0.00032699,30]
[423383005,1780069853000,-1000.0,0.00032877,10]
[423383013,1780069853000,-50339.39,0.000329,14]
[423383002,1780069853000,-1000.0,0.00032877,120]
[423383006,1780069853000,-1000.0,0.00032877,10]
[423383004,1780069853000,-1000.0,0.00032877,10]
[423383009,1780069853000,-186.41,0.00032877,120]
[423383011,1780069853000,-775.62999999,0.00032877,30]
[423383010,1780069853000,-150.0,0.00032877,2]
[423383012,1780069853000,-789.412216,0.00032877,12]
[423383015,1780069853000,-1000.0,0.00032998,8]
[423383014,1780069853000,-699.0,0.00032995,11]
[423383017,1780069853000,-267.154285,0.00033,15]
[423383018,1780069853000,-259.733333,0.00033,15]
[423383019,1780069853000,-200.0,0.00033,10]
[423382987,1780069853000,-185.0,0.00032686,30]
[423383000,1780069853000,-884.0,0.00032848,10]
[423382991,1780069853000,-506.0,0.00032699,30]
[423382962,1780069853000,-10000.0,0.00032548,2]
[423382988,1780069853000,-1418.0,0.00032686,30]
[423382961,1780069853000,-2062.0,0.00032494,120]
[423382970,1780069853000,-2247.58278058,0.00032656,7]
[423382971,1780069853000,-163.0,0.00032675,11]
[423382965,1780069853000,-964.36907965,0.0003263,7]
[423382963,1780069853000,-1047.0687181,0.00032602,7]
[423382964,1780069853000,-1000.0,0.00032623,2]
[423382960,1780069853000,-163.0,0.00032445,11]
[423383016,1780069853000,-2396.45,0.00033,30]
[423382967,1780069853000,-943.27801792,0.0003263,7]
[423382966,1780069853000,-941.72582957,0.0003263,7]
[423382969,1780069853000,-936.35139438,0.0003263,7]
[423382968,1780069853000,-924.32888821,0.0003263,7]
[423382980,1780069853000,-1257.70693772,0.00032676,7]
[423382989,1780069853000,-902.0,0.00032686,30]
[423382983,1780069853000,-2318.0,0.0003268,11]
[423382981,1780069853000,-984.96418998,0.00032676,7]
[423382973,1780069853000,-1013.5277865,0.00032676,7]
[423382975,1780069853000,-927.16274114,0.00032676,7]
[423382972,1780069853000,-969.98937458,0.00032676,7]
[423382974,1780069853000,-952.56598989,0.00032676,7]
[423382976,1780069853000,-901.85137991,0.00032676,7]
[423382977,1780069853000,-1016.41940879,0.00032676,7]
[423382978,1780069853000,-1160.85150302,0.00032676,2]
[423382979,1780069853000,-901.48685598,0.00032676,7]
[423382985,1780069853000,-303.0,0.00032686,30]
[423382984,1780069853000,-163.0,0.0003268,11]
[423382986,1780069853000,-354.0,0.00032686,30]
[423382995,1780069853000,-407.0,0.00032699,30]
[423382982,1780069853000,-975.37907046,0.00032676,7]
[423383021,1780069853000,-731.86,0.000331,7]
[423383020,1780069853000,-163.0,0.00033085,11]
[423383022,1780069853000,-300.0,0.000331,10]
[423383055,1780069853000,-185.0,0.00033686,30]
[423383054,1780069853000,-354.0,0.00033686,30]
[423383053,1780069853000,-303.0,0.00033686,30]
[423383057,1780069853000,-902.0,0.00033686,30]
[423383060,1780069853000,-1489.0,0.00033699,30]
[423383062,1780069853000,-407.0,0.00033699,30]
[423383063,1780069853000,-2407.0,0.00033699,30]
[423383070,1780069853000,-884.0,0.00033958,11]
[423383068,1780069853000,-249.344,0.000339,20]
[423383069,1780069853000,-1500.0,0.000339,14]
[423383066,1780069853000,-224.04,0.00033823,7]
[423383065,1780069853000,-200.0,0.000337,8]
[423383067,1780069853000,-311.68,0.000339,20]
[423383058,1780069853000,-506.0,0.00033699,30]
[423383064,1780069853000,-982.0,0.00033699,30]
[423383061,1780069853000,-364.0,0.00033699,30]
[423383072,1780069853000,-1100.4910209,0.00033959,7]
[423383074,1780069853000,-1092.40996011,0.00033959,7]
[423383084,1780069853000,-2062.0,0.00034118,120]
[423383073,1780069853000,-1467.32476068,0.00033959,7]
[423383078,1780069853000,-1000.0,0.00033997,32]
[423383076,1780069853000,-1162.20362272,0.00033985,7]
[423383083,1780069853000,-1137.94224887,0.00034007,7]
[423383075,1780069853000,-2622.17991068,0.00033985,7]
[423383077,1780069853000,-230.49,0.0003399,7]
[423383079,1780069853000,-1182.44908425,0.00034007,7]
[423383081,1780069853000,-1052.15994323,0.00034007,7]
[423383080,1780069853000,-1231.82606632,0.00034007,7]
[423383071,1780069853000,-1098.6801345,0.00033959,7]
[423383056,1780069853000,-1418.0,0.00033686,30]
[423383082,1780069853000,-1149.12488831,0.00034007,7]
[423383051,1780069853000,-231.43,0.00033655,7]
[423383052,1780069853000,-200.0,0.00033672,10]
[423383033,1780069853000,-884.0,0.00033403,10]
[423383024,1780069853000,-1590.0,0.00033175,11]
[423383023,1780069853000,-163.0,0.00033166,11]
[423383025,1780069853000,-1180.38,0.00033182,30]
[423383027,1780069853000,-311.68,0.000332,16]
[423383028,1780069853000,-159.52,0.00033208,2]
[423383030,1780069853000,-3537.8,0.000334,30]
[423383029,1780069853000,-1000.0,0.00033243,4]
[423383031,1780069853000,-1500.0,0.000334,7]
[423383026,1780069853000,-152.0,0.00033186,9]
[423383034,1780069853000,-500.0,0.00033418,120]
[423383036,1780069853000,-1590.0,0.00033485,11]
[423383038,1780069853000,-500.0,0.00033507,2]
[423383032,1780069853000,-1510.970504,0.000334,14]
[423383039,1780069853000,-928.0,0.0003352,2]
[423383035,1780069853000,-150.0,0.00033451,2]
[423383049,1780069853000,-500.0,0.00033613,14]
[423383059,1780069853000,-430.0,0.00033699,30]
[423383050,1780069853000,-220.54036011,0.0003364,2]
[423383044,1780069853000,-1225.0,0.0003352,2]
[423383041,1780069853000,-3549.0,0.0003352,2]
[423383048,1780069853000,-3638.0,0.0003352,2]
[423383042,1780069853000,-525.0,0.0003352,2]
[423383043,1780069853000,-1272.0,0.0003352,2]
[423383046,1780069853000,-418.0,0.0003352,2]
[423383045,1780069853000,-150.0,0.0003352,2]
[423383037,1780069853000,-219.89,0.00033488,7]
[423383040,1780069853000,-1356.0,0.0003352,2]
[423383047,1780069853000,-150.0,0.0003352,2]
[423383122,1780069854000,-1500.0,0.00034795,2]
[423383115,1780069854000,-364.0,0.00034699,30]
[423383116,1780069854000,-407.0,0.00034699,30]
[423383118,1780069854000,-982.0,0.00034699,30]
[423383121,1780069854000,-1000.0,0.00034794,3]
[423383119,1780069854000,-638.32565559,0.00034762,120]
[423383117,1780069854000,-2407.0,0.00034699,30]
[423383124,1780069854000,-1001.0,0.00034849,120]
[423383123,1780069854000,-392.0,0.000348,2]
[423383134,1780069854000,-1929.12,0.00035172,120]
[423383126,1780069854000,-500.0,0.0003497,120]
[423383127,1780069854000,-563.87609265,0.0003497,120]
[423383128,1780069854000,-50339.39,0.00035,14]
[423383130,1780069854000,-884.0,0.00035067,12]
[423383133,1780069854000,-1139.53,0.0003513,69]
[423383132,1780069854000,-150.0,0.00035124,2]
[423383131,1780069854000,-3537.8,0.000351,30]
[423383120,1780069854000,-2761.0,0.00034785,2]
[423383129,1780069854000,-1000.0,0.0003502,5]
[423383135,1780069854000,-150.0,0.00035175,120]
[423383138,1780069854000,-327.059999,0.000353,14]
[423383142,1780069854000,-150.0,0.00035433,7]
[423383136,1780069854000,-311.68,0.000352,26]
[423383141,1780069854000,-150.0,0.00035433,7]
[423383145,1780069854000,-355.0,0.00035435,2]
[423383146,1780069854000,-1144.4244,0.00035456,2]
[423383125,1780069854000,-1000.0,0.00034903,20]
[423383114,1780069854000,-1489.0,0.00034699,30]
[423383101,1780069854000,-152.0,0.00034539,10]
[423383113,1780069854000,-430.0,0.00034699,30]
[423383143,1780069854000,-150.0,0.00035433,7]
[423383085,1780069854000,-2000.0,0.0003412,7]
[423383087,1780069854000,-2318.0,0.00034138,11]
[423383086,1780069854000,-163.0,0.00034138,11]
[423383088,1780069854000,-228.73,0.00034158,7]
[423383095,1780069854000,-2184.58596145,0.00034478,2]
[423383098,1780069854000,-598.83806631,0.00034481,2]
[423383097,1780069854000,-204.4,0.00034479,120]
[423383096,1780069854000,-454.45,0.00034479,120]
[423383091,1780069854000,-151.92,0.00034212,120]
[423383090,1780069854000,-2704.2,0.00034182,7]
[423383094,1780069854000,-245.82020998,0.00034453,2]
[423383111,1780069854000,-1000.0,0.00034691,16]
[423383089,1780069854000,-2318.0,0.0003416,11]
[423383092,1780069854000,-775.62999999,0.00034247,30]
[423383103,1780069854000,-259.733333,0.000346,23]
[423383110,1780069854000,-902.0,0.00034686,30]
[423383107,1780069854000,-354.0,0.00034686,30]
[423383102,1780069854000,-455.81,0.0003459,30]
[423383099,1780069854000,-884.0,0.00034513,11]
[423383105,1780069854000,-267.154285,0.00034667,23]
[423383106,1780069854000,-303.0,0.00034686,30]
[423383104,1780069854000,-1180.38,0.00034628,30]
[423383109,1780069854000,-1418.0,0.00034686,30]
[423383108,1780069854000,-185.0,0.00034686,30]
[423383112,1780069854000,-506.0,0.00034699,30]
[423383093,1780069854000,-237.32,0.00034325,7]
[423383100,1780069854000,-150.0,0.00034521,2]
[423383144,1780069854000,-150.0,0.00035433,7]
[423383139,1780069854000,-249.344,0.000354,27]
[423383175,1780069854000,-500.0,0.00035616,7]
[423383179,1780069854000,-500.0,0.00035616,7]
[423383172,1780069854000,-25000.0,0.00035616,10]
[423383174,1780069854000,-186.38,0.00035616,120]
[423383180,1780069854000,-500.0,0.00035616,7]
[423383178,1780069854000,-500.0,0.00035616,7]
[423383181,1780069854000,-500.0,0.00035616,7]
[423383182,1780069854000,-500.0,0.00035616,7]
[423383184,1780069854000,-500.0,0.00035616,7]
[423383186,1780069854000,-500.0,0.00035616,7]
[423383187,1780069854000,-500.0,0.00035616,7]
[423383189,1780069854000,-500.0,0.00035616,7]
[423383183,1780069854000,-500.0,0.00035616,7]
[423383188,1780069854000,-500.0,0.00035616,7]
[423383190,1780069854000,-500.0,0.00035616,7]
[423383192,1780069854000,-500.0,0.00035616,7]
[423383194,1780069854000,-500.0,0.00035616,7]
[423383193,1780069854000,-500.0,0.00035616,7]
[423383197,1780069854000,-500.0,0.00035616,7]
[423383196,1780069854000,-500.0,0.00035616,7]
[423383195,1780069854000,-500.0,0.00035616,7]
[423383199,1780069854000,-500.0,0.00035616,7]
[423383201,1780069854000,-884.0,0.00035622,13]
[423383198,1780069854000,-645.83851375,0.00035616,7]
[423383200,1780069854000,-959.03,0.00035616,2]
[423383140,1780069854000,-150.0,0.00035433,7]
[423383191,1780069854000,-500.0,0.00035616,7]
[423383176,1780069854000,-500.0,0.00035616,7]
[423383185,1780069854000,-500.0,0.00035616,7]
[423383173,1780069854000,-1000.0,0.00035616,120]
[423383137,1780069854000,-1000.0,0.00035249,26]
[423383171,1780069854000,-386.35330165,0.00035616,10]
[423383148,1780069854000,-300.0,0.00035456,2]
[423383150,1780069854000,-1144.4244,0.00035456,2]
[423383158,1780069854000,-200.0,0.00035458,2]
[423383147,1780069854000,-371.57842453,0.00035456,2]
[423383153,1780069854000,-200.0,0.00035458,30]
[423383156,1780069854000,-200.0,0.00035458,7]
[423383157,1780069854000,-200.0,0.00035458,3]
[423383151,1780069854000,-300.0,0.00035456,2]
[423383155,1780069854000,-200.0,0.00035458,15]
[423383149,1780069854000,-300.0,0.00035456,2]
[423383154,1780069854000,-200.0,0.00035458,20]
[423383152,1780069854000,-300.0,0.00035456,2]
[423383166,1780069854000,-1000.0,0.00035506,17]
[423383161,1780069854000,-250.0,0.00035476,7]